Cogmind - Beta 10 @@@ ROGUE MODE // 2020.09.20 @ 22:53:49 Player: Joel Result: Destroyed by 8R-AWN with 8R-AWN's Boregun Performance ------------- Evolutions (1) 500 Regions Visited (5) 1000 Robots Destroyed (69) 345 Value Destroyed (1125) 1125 Prototype IDs (24) 480 Alien Tech Used (0) 0 Bonus (85) 85 TOTAL SCORE: 3535 Bonus ------- High Alert Combat Kills 46 Follower Combat Kills 351 Aligned with FarCom 300 Friendly Fire -612 Cogmind --------- Core Integrity 0/400 Matter 18/300 Energy 100/100 System Corruption 0% Temperature Cool (0) Movement Treading (260) Ox5 Location -9/Exiles Parts ------- > --- POWER (1) -------- (None) > --- PROPULSION (2) --- Light Treads > --- UTILITY (4) ------ Large Storage Unit Humpback Core Shielding > --- WEAPON (2) ------- Heavy Assault Rifle Heavy Assault Rifle > --- INVENTORY (30) --- Compact Wheel Large Storage Unit Bomb Drone Bay (16/16) PSU Rigger Latent Energy Streamer Assault Rifle Assault Rifle Light Assault Rifle Light Assault Rifle AWS/Autocannon Rocket Launcher Heavy Missile Launcher Peak State ------------ > --- POWER ------------ Light Nuclear Core > --- PROPULSION ------- Light Treads Medium Treads > --- UTILITY ---------- Large Storage Unit Large Storage Unit Large Storage Unit Improved Medium Armor Plating > --- WEAPON ----------- Gauss Rifle Improved Light Cannon > --- INVENTORY -------- Light Treads Light Treads Light Treads Light Treads Compact Wheel Core Shielding Light Armor Plating Light Armor Plating Light Armor Plating Light Armor Plating Bomb Drone Bay Assault Rifle Assault Rifle Assault Rifle Light Assault Rifle Heavy Assault Rifle Heavy Assault Rifle Improved Light Cannon Rocket Launcher Heavy Missile Launcher [Rating: 25] Favorites ----------- Power Ion Engine Engine Ion Engine Power Core Light Nuclear Core Propulsion Light Treads Treads Light Treads Utility Large Storage Unit Device Bomb Drone Bay Storage Large Storage Unit Protection Light Armor Plating Weapon Assault Rifle Energy Gun Small Laser Energy Cannon Light EM Pulse Cannon Ballistic Gun Assault Rifle Ballistic Cannon Improved Light Cannon Launcher Heavy Missile Launcher Special Weapon Mining Laser Build | -11 -10 -10 -9 -9 -9 ------- Run | Scr Mat Min Mat Min Exi Slots Evolved 2 | . . . 2 . . Power . | . . . . . . Propulsion . | . . . . . . Utility 2 | . . . 2 . . Weapon . | . . . . . . Parts Attached 53 | 6 9 5 9 10 14 Power 4 | 1 . . . 3 . Engine 3 | 1 . . . 2 . Core 1 | . . . . 1 . Reactor . | . . . . . . Propulsion 11 | 2 . . 4 2 3 Treads 11 | 2 . . 4 2 3 Leg . | . . . . . . Wheel . | . . . . . . Hover . | . . . . . . Flight . | . . . . . . Utility 20 | 1 4 3 3 2 7 Device 2 | . . 1 1 . . Storage 10 | 1 4 2 1 . 2 Processor . | . . . . . . Hackware . | . . . . . . Protection 8 | . . . 1 2 5 Artifact . | . . . . . . Weapon 18 | 2 5 2 2 3 4 Energy Gun 3 | 1 1 1 . . . Energy Cannon 1 | . 1 . . . . Ballistic Gun 10 | 1 2 1 . 3 3 Ballistic Cannon 2 | . . . 2 . . Launcher 1 | . . . . . 1 Special Weapon 1 | . 1 . . . . Impact Weapon . | . . . . . . Slashing Weapon . | . . . . . . Piercing Weapon . | . . . . . . Special Melee Weapon . | . . . . . . Unidentified Prototypes 1 | . . 1 . . . Parts Lost 17 | . 1 . 1 4 11 Power 3 | . . . . 2 1 Propulsion 6 | . . . 1 1 4 Utility 5 | . . . . 1 4 Weapon 3 | . 1 . . . 2 Highest Loss Streak 11 | . 1 . 1 2 11 Average Slot Usage (%) 96 | . 97 99 96 95 93 Engine 11 | . 14 14 11 5 10 Treads 24 | . 28 28 20 22 21 Storage 28 | . 26 27 30 33 25 Protection 5 | . . . 8 7 14 Energy Gun 1 | . 5 1 . . . Energy Cannon 5 | . 8 14 3 . . Ballistic Gun 11 | . 10 12 3 14 17 Ballistic Cannon 3 | . . . 15 7 . Naked Turns . | . . . . . . Heaviest Build 98 | 11 43 44 64 73 98 Greatest Support 48 | 40 40 40 40 48 48 Greatest Overweight (x) 2 | . 1 1 2 1 2 Average Overweight (x) . | . . . 1 1 1 Largest Inventory Capacity 36 | 6 16 16 22 22 36 Average Capacity 18 | 5 12 15 20 22 23 Most Carried 24 | 5 14 16 22 22 24 Average Carried 16 | 3 11 15 20 21 19 Final Capacity 30 | 6 16 16 22 22 30 Final Carried 22 | 5 14 16 22 21 15 Class Distribution -------------------- 50% | Mutant 49% | Hauler-Mutant Dominant Class ---------------- Mutant | -10/Materials Mutant | -10/Mines Hauler-Mutant | -9/Materials Hauler-Mutant | -9/Mines Hauler-Mutant | -9/Exiles Resources | -11 -10 -10 -9 -9 -9 ----------- Run | Scr Mat Min Mat Min Exi Matter Collected 1329 | 264 156 65 250 444 150 Remotely . | . . . . . . Salvage Created 2000 | 119 469 207 704 473 28 Parts 131 | 6 31 10 44 27 13 Haulers Intercepted 5 | . 2 . 3 . . Recyclers Shooed 4 | . 2 . 2 . . Parts Field Recycled . | . . . . . . Retrieved Matter . | . . . . . . Parts Self-Destructed . | . . . . . . Prevented . | . . . . . . Kills | -11 -10 -10 -9 -9 -9 ------- Run | Scr Mat Min Mat Min Exi Combat Hostiles Destroyed 45 | . 11 4 8 18 4 Guns 24 | . 9 1 . 12 2 Cannons 17 | . 2 1 8 6 . AOE 4 | . . 2 . . 2 Classes Destroyed 12 | 2 4 . 4 2 . Worker 2 | . . . 2 . . Tunneler 2 | 2 . . . . . Hauler 5 | . 2 . 3 . . Recycler 9 | 1 1 1 3 3 . Operator 1 | . . . 1 . . Watcher 1 | . 1 . . . . Swarmer 20 | . 6 2 1 11 . Grunt 16 | . 5 2 4 5 . Duelist 1 | . . . 1 . . Sentry 2 | . . . 2 . . Demolisher 1 | . . . . 1 . Assembled 8 | . . . . 1 7 Best Kill Streak 7 | 2 4 2 4 7 5 Combat Bots Only 7 | . 3 2 2 7 4 Max Kills in Single Turn 3 | 1 1 2 2 1 3 Gunslinging . | . . . . . . Exploded 2 | . . 2 . . 2 Melee . | . . . . . . Uniques/NPCs Destroyed 1 | . . . . . 1 EX-HEX (-9/Exiles) Combat | -11 -10 -10 -9 -9 -9 -------- Run | Scr Mat Min Mat Min Exi Damage Taken 3539 | . 473 94 209 1271 1492 Core 473 | . 60 10 17 163 223 Absorbed by Shields . | . . . . . . Core Remaining (%) 86 | 100 . 72 . . . Volleys Fired 204 | 4 52 9 32 61 46 Largest 2 | 2 2 2 2 2 2 Hottest 121 | 60 100 121 78 78 51 Shots Fired 392 | 8 100 17 64 114 89 Gun 268 | 8 87 8 13 66 86 Cannon 118 | . 10 9 51 48 . Launcher 3 | . . . . . 3 Special 3 | . 3 . . . . Kinetic 310 | 4 48 7 51 114 86 Thermal 47 | 4 42 1 . . . Explosive 3 | . . . . . 3 Electromagnetic 32 | . 10 9 13 . . Robot Hit Streak 14 | 3 12 14 14 6 11 Robot Miss Streak 4 | 1 3 2 4 3 1 Penetration Max . | . . . . . . Secondary Targets 3 | . . . . 2 1 Max Gunslinging Chain 1 | . . . . 1 1 Shots Hit Robots 258 | 5 66 13 35 65 74 Core Hits 109 | 4 28 9 18 27 23 Critical Hits 5 | . . . . 2 3 Critical Kills 1 | . . . . 1 . Critical Parts Destroyed 1 | . . . . 1 . Melee Attacks . | . . . . . . Impact . | . . . . . . Slashing . | . . . . . . Piercing . | . . . . . . Sneak Attacks . | . . . . . . Combat Hostiles . | . . . . . . Follow-up Attacks . | . . . . . . Damage Inflicted 4874 | 49 807 280 746 1293 1699 Guns 2402 | 49 574 66 41 483 1189 Cannons 1888 | . 206 167 705 810 . Explosions 557 | . . 47 . . 510 Melee . | . . . . . . Ramming 3 | . 3 . . . . Kinetic 3336 | 18 239 66 531 1293 1189 Thermal 437 | 31 359 47 . . . Explosive 510 | . . . . . 510 Electromagnetic 588 | . 206 167 215 . . Impact . | . . . . . . Slashing . | . . . . . . Piercing . | . . . . . . Highest Corruption . | . . . . . . Average Corruption . | . . . . . . Corruption Purged . | . . . . . . Overload Shots . | . . . . . . Overflow Damage 68 | . . . . 53 15 Projectiles 53 | . . . . 53 . Explosions 15 | . . . . . 15 Melee . | . . . . . . Knockbacks 10 | . . . 1 9 . Impact . | . . . . . . Kinetic 10 | . . . 1 9 . Secondary . | . . . . . . Self-Inflicted Damage . | . . . . . . Shots . | . . . . . . Rammed 1 | . 1 . . . . Targets Rammed 1 | . 1 . . . . Kicked . | . . . . . . Crushed . | . . . . . . Highest Temperature 368 | 20 190 84 115 368 8 Average Temperature 80 | 12 46 38 28 184 4 Received Heat Transfer 654 | . 171 24 57 402 . Effects 4 | . . . . 4 . Shutdowns 1 | . . . . 1 . Energy Bleed 1 | . . . . 1 . Interference 2 | . . . . 2 . Siege Activations . | . . . . . . Robots Corrupted . | . . . . . . Combat Hostiles . | . . . . . . Parts Fried 3 | . 1 2 . . . Impact Corruptions . | . . . . . . Robots Melted . | . . . . . . Combat Hostiles . | . . . . . . Parts Melted 1 | . 1 . . . . Heat Transferred 925 | 75 800 50 . . . Parts Sabotaged . | . . . . . . Parts Stolen . | . . . . . . Parts Stripped . | . . . . . . Power Chain Reactions 1 | . . 1 . . . Missiles Intercepted . | . . . . . . Alert | -11 -10 -10 -9 -9 -9 ------- Run | Scr Mat Min Mat Min Exi Peak Influence 581 | 15 266 86 581 440 . Initial 168 | . 9 . . 168 . Average 145 | 7 70 13 382 233 . Maximum Alert Level 2 | . 1 . 2 2 . Low Security (%) 67 | 100 94 100 14 30 . Level 1 23 | . 5 . 38 68 . Level 2 9 | . . . 46 1 . Level 3 . | . . . . . . Level 4 . | . . . . . . Level 5 . | . . . . . . High Security . | . . . . . . Max Security . | . . . . . . Squads Dispatched 5 | . 1 . 4 . . Investigation 3 | . 1 . 2 . . Extermination . | . . . . . . Reinforcement 2 | . . . 2 . . Assault . | . . . . . . Garrison . | . . . . . . Intercept . | . . . . . . Construction Impeded . | . . . . . . Haulers Reinforced . | . . . . . . Stealth | -11 -10 -10 -9 -9 -9 --------- Run | Scr Mat Min Mat Min Exi Distress Signals 5 | . 1 . 4 . . Communications Jammed . | . . . . . . Distress Signals . | . . . . . . Times Spotted 78 | . 18 5 29 21 5 Peak Tracking Total 6 | . 4 3 6 6 6 Tactical Retreats 3 | . 1 . . 2 . Traps | -11 -10 -10 -9 -9 -9 ------- Run | Scr Mat Min Mat Min Exi Traps Triggered 3 | . 1 . 2 . . Indirectly . | . . . . . . Trap Hack Attempts . | . . . . . . Triggered . | . . . . . . Disarmed . | . . . . . . Reprogrammed . | . . . . . . Reused . | . . . . . . Traps Extracted . | . . . . . . Installed . | . . . . . . Triggered . | . . . . . . Machines | -11 -10 -10 -9 -9 -9 ---------- Run | Scr Mat Min Mat Min Exi Machines Disabled 6 | . . . 1 . 5 Max in Single Turn 2 | . . . 1 . 2 Machines Sabotaged . | . . . . . . Garrisons Compromised . | . . . . . . Overloaded Fab Kills . | . . . . . . Fab Network Shutdowns . | . . . . . . Hacking | -11 -10 -10 -9 -9 -9 --------- Run | Scr Mat Min Mat Min Exi Machines Accessed 13 | . 9 1 . 1 2 Terminals 7 | . 7 . . . . Fabricators . | . . . . . . Repair Stations 1 | . 1 . . . . Recycling Units 1 | . 1 . . . . Scanalyzers . | . . . . . . Garrison Access . | . . . . . . Total Hacks 31 | . 27 1 . 1 2 Successful 23 | . 19 1 . 1 2 Failed 8 | . 8 . . . . Catastrophic . | . . . . . . Database Lockouts . | . . . . . . Manual 17 | . 16 . . . 1 Terminals 24 | . 24 . . . . Fabricators . | . . . . . . Repair Stations 2 | . 2 . . . . Recycling Units 1 | . 1 . . . . Scanalyzers . | . . . . . . Garrison Access . | . . . . . . Terminal Hacks 13 | . 9 1 . 1 2 Record 1 | . . . . . 1 Part Schematic 1 | . 1 . . . . Robot Analysis 2 | . 2 . . . . Open Door 2 | . . 1 . 1 . Terminal Index 1 | . 1 . . . . Locate Traps 2 | . 2 . . . . Hauler Manifests 1 | . 1 . . . . Zone Layout 2 | . 2 . . . . EX-Prototype ID Bank 1 | . . . . . 1 Fabricator Hacks . | . . . . . . Repair Station Hacks 2 | . 2 . . . . Scan Component 1 | . 1 . . . . Repair 1 | . 1 . . . . Recycling Unit Hacks 1 | . 1 . . . . Retrieve Components 1 | . 1 . . . . Scanalyzer . | . . . . . . Garrison Access Hacks . | . . . . . . Unauthorized Hacks 7 | . 7 . . . . Terminals 7 | . 7 . . . . Track 3 | . 3 . . . . Botnet 3 | . 3 . . . . Operators 1 | . 1 . . . . Fabricators . | . . . . . . Repair Stations . | . . . . . . Recycling Units . | . . . . . . Scanalyzers . | . . . . . . Garrison Access . | . . . . . . Data Cores Recovered . | . . . . . . Used . | . . . . . . Hacking Detections 7 | . 7 . . . . Full Trace Events . | . . . . . . Feedback Events . | . . . . . . Feedback Blocked . | . . . . . . Robot Schematics Acquired . | . . . . . . Robots Built . | . . . . . . Matter . | . . . . . . Time . | . . . . . . Total Robot Build Rating . | . . . . . . Part Schematics Acquired 1 | . 1 . . . . Parts Built . | . . . . . . Matter . | . . . . . . Time . | . . . . . . Total Part Build Rating . | . . . . . . Parts Repaired 1 | . 1 . . . . Time 26 | . 26 . . . . Parts Recycled . | . . . . . . Recycled Matter . | . . . . . . Retrieved Matter . | . . . . . . Retrieved Components 8 | . 8 . . . . Parts Scanalyzed . | . . . . . . Part Schematics Acquired . | . . . . . . Parts Damaged . | . . . . . . Bothacking | -11 -10 -10 -9 -9 -9 ------------ Run | Scr Mat Min Mat Min Exi Used RIF Installer . | . . . . . . Robots Hacked . | . . . . . . Non-combat . | . . . . . . Combat . | . . . . . . Robot Hacks Applied . | . . . . . . Relay Couplers Released . | . . . . . . Robots Rewired . | . . . . . . Allies Hacked . | . . . . . . Hacks Repelled . | . . . . . . Allies | -11 -10 -10 -9 -9 -9 -------- Run | Scr Mat Min Mat Min Exi Total Allies 3 | . . 3 . . . Largest Group 3 | . . 3 3 2 . Highest-Rated Group 40 | . . 40 40 30 . Highest-Rated Ally 16 | . . 16 16 16 . Total Orders 2 | . . . 2 . . FOLLOW 1 | . . . 1 . . RETURN 1 | . . . 1 . . Ally Attacks 103 | . . 2 99 2 . Total Damage 1095 | . . 18 1048 29 . Kills 22 | . . 1 21 . . Allies Corrupted . | . . . . . . Allies Melted . | . . . . . . Intel | -11 -10 -10 -9 -9 -9 ------- Run | Scr Mat Min Mat Min Exi Robot Analysis Total 2 | . 2 . . . . Derelict Logs Recovered 2 | . . 2 . . . Drone Launches 1 | . . . 1 . . Drone Recoveries 1 | . . . 1 . . Exploration | -11 -10 -10 -9 -9 -9 ------------- Run | Scr Mat Min Mat Min Exi Turns Passed 5439 | 96 1297 1211 813 895 1127 Spaces Moved 2567 | 47 635 634 364 370 517 Core 3 | 3 . . . . . Treads 2564 | 44 635 634 364 370 517 Legs . | . . . . . . Wheels . | . . . . . . Hover . | . . . . . . Flight . | . . . . . . Fastest Speed 50 | 50 160 160 180 180 180 Average Speed 176 | 152 163 179 181 180 185 Slowest Speed 200 | 160 180 180 200 180 200 Overloaded Moves . | . . . . . . Propulsion Burnouts . | . . . . . . Robots Hopped . | . . . . . . Cave-ins Triggered . | . . . . . . Exploration Rate (%) 57 | 5 94 87 36 56 69 Regions Visited 5 Branch Regions 3 Pre-discovered Areas 2 | . . 1 . . 1 Known Exits Taken . | . . . . . . Unknown Exits Taken 5 | 1 1 1 1 1 . Scrap Searched 1 | . . 1 . . . Spaces Dug 2 | . 2 . . . . Terrain Destroyed 38 | . 2 3 3 1 29 Melee . | . . . . . . Projectile 9 | . 2 . 3 1 3 AOE 29 | . . 3 . . 26 Terrain Rammed . | . . . . . . Walls Destroyed . | . . . . . . Machines Disabled . | . . . . . . Actions | -11 -10 -10 -9 -9 -9 --------- Run | Scr Mat Min Mat Min Exi Total 3115 | 61 801 694 469 492 598 Wait 167 | . 81 21 24 41 . Move 2562 | 46 634 633 363 369 517 Hop . | . . . . . . Pick Up 78 | 5 16 17 23 5 12 Fast Attach 13 | 6 2 4 . 1 . Attach 21 | . 1 1 4 3 12 Detach 5 | . . 1 1 . 3 Swap 19 | . 6 . 5 6 2 Drop 45 | . 8 8 17 6 6 Fire 204 | 4 52 9 32 61 46 Melee . | . . . . . . Ram . | . . . . . . Kick . | . . . . . . Crush 1 | . 1 . . . . Escape Stasis . | . . . . . . Rewire . | . . . . . . Trap . | . . . . . . Miscellaneous . | . . . . . . Route ------- -11/Scrapyard -10/Materials (discovered 4 exits: *Mat x3 / *Min) -10/Mines (discovered 2 exits: *Mat x2) -9/Materials (discovered 5 exits: *Mat x3 / *Min / [*Sto]) -9/Mines (discovered 2 exits: *Mat / *Exi) -9/Exiles (discovered 1 exit: [*Min]) History --------- Turn | Location | Event 28 | -11/Scrapyard | Discovered new exit (range 15) 97 | -11/Scrapyard | Entered Materials 311 | -10/Materials | Build established: Mutant 452 | -10/Materials | Discovered new exit (range 15) 604 | -10/Materials | Discovered new exit (range 13) 680 | -10/Materials | Repaired Lgt. Assault Rifle 995 | -10/Materials | Discovered new exit (range 3) 1131 | -10/Materials | Discovered new exit (range 13) 1394 | -10/Materials | Entered Mines 1494 | -10/Mines | Learned location of 1 exit from Materials 1698 | -10/Mines | Assisted by bots powering up and referring to "LRC-V3" 1763 | -10/Mines | Learned 2 Materials zone layouts 1842 | -10/Mines | Discovered new exit (range 8) 1975 | -10/Mines | Received a Rocket Launcher from a helpful Derelict 1982 | -10/Mines | Discovered new exit (range 15) 2134 | -10/Mines | Learned location of Storage (-9) 2290 | -10/Mines | Found the Drone Emporium 2343 | -10/Mines | Found Prototype Device 2343 | -10/Mines | Identified Bomb Drone Bay 2605 | -10/Mines | Entered Materials 2605 | -9/Materials | Accompanied by 3 allies 2605 | -9/Materials | Evolved 2 slots: Utility x2 2606 | -9/Materials | Identified exit to Materials 2747 | -9/Materials | Discovered new exit (range 9) 2977 | -9/Materials | Discovered exit to Materials (range 15) 3024 | -9/Materials | Build established: Hauler-Mutant 3306 | -9/Materials | Discovered new exit (range 12) 3418 | -9/Materials | Entered Mines 3418 | -9/Mines | Accompanied by 2 allies 3441 | -9/Mines | Met a Derelict who couldn't figure out how to use a Trap Extractor 3755 | -9/Mines | Destroyed 7 combat bots 3901 | -9/Mines | Assembled infested the area 4061 | -9/Mines | Discovered exit to Materials (range 6) 4306 | -9/Mines | Deemed a non-threat by the Exiles lab entrance 4306 | -9/Mines | Discovered new exit (range 5) 4313 | -9/Mines | Entered Exiles 4337 | -9/Exiles | Discovered new exit (range 15) 4396 | -9/Exiles | Met 8R-AWN 4426 | -9/Exiles | Met EX-HEX 4498 | -9/Exiles | Met EX-DEC 4513 | -9/Exiles | Learned location of Zion (-6) 5022 | -9/Exiles | Met EX-BIN 5046 | -9/Exiles | Aligned with FarCom system 5048 | -9/Exiles | Given EX-Vault access code 5094 | -9/Exiles | Opened EX-Vault 5122 | -9/Exiles | Found AWS/Autocannon 5129 | -9/Exiles | Found PSU Rigger 5134 | -9/Exiles | Found Latent Energy Streamer 5175 | -9/Exiles | Warned to stay clear of 0b10 Research branches 5295 | -9/Exiles | Attacked by the Exiles 5299 | -9/Exiles | Destroyed EX-HEX 5304 | -9/Exiles | Core integrity fell below 50% 5391 | -9/Exiles | Core integrity fell below 20% 5434 | -9/Exiles | Lost 11 parts (1p4n4u2w) 5440 | -9/Exiles | Destroyed by 8R-AWN with 8R-AWN's Boregun Last Messages --------------- 05386_ Critical hit. 05386_ Assault Rifle destroyed. 05386_ Penetrated by HV Slug. 05389_ Slug penetrates 8R-AWN. 05390_ Penetrated by HV Slug. 05397_ The unstable cave ceiling collapses. 05398_ Slug penetrates Wall. 05399_ Penetrated by HV Slug. 05401_ Slug penetrates 8R-AWN. 05403_ HV Slug penetrates Wall. 05403_ Penetrated by HV Slug. 05403_ Critical hit. 05403_ Gauss Rifle destroyed. 05407_ Penetrated by HV Slug. 05412_ HV Slug penetrates Wall. 05416_ Penetrated by HV Slug. 05420_ 8R-AWN suffers critical hit. 05420_ Penetrated by HV Slug. 05435_ Destroyed Prototype Protection. 05436_ Penetrated by HV Slug. Map ----- +----------------------------------------------------+ | """#???????????????????????????????????? | | """#???????????????????????????????????? | | """#???????????????????????????????????? | | """#???????????????????????????????????? | | """"???????????????????????????????????? | | """#???????????????????????????????????? | | "X" """"???????????????????????????????????? | | """ #???????????????????????????????????? | | """""""""#???????????????????????????????????? | | ###########???????????????????????????????????? | | #?????????????????????????????????????????????? | | #?????????????????????????????????????????????? | | ##????????????????????????????????????????????? | | ##???###########?????????????????????????????? | | #####"""" """"##????????????????????????????? | | " """ """"##???????????????????????????? | | "" " #???????????????????????????? | | """#???????????????????????????? | | a"#???????????#####???????????? | | "##?????????##" #???????????? | | [ "###???????#" #???????????? | | " ! ""#??????##" ##??????????? | | """ ! % "#????### ###????????# | | ####""" ###### ########## | | ???##""" * #; ## #""""## | | ????#"""" @;## | | ???##"" %g ## | | ####"""" #### | | #""" "#?#"""""#### | | "" # ""##?#######??#### | | ######??????????????### | | ##?????????????????????? | | ##??????????????????????? | | "" " #???????????????????????? | | ##""" " " "" "##???????????????????????? | | ######""" """ "##????????????????????????? | | #????###""""## ## ## #?????????????????????????? | | ####???######?? ???????????????????????????? | | "!#????????????? ????????????????????????????? | | ] #????????????????????????????????????????????? | | "#????????????????????????????????????????????? | | ""!"#????????????????????????????????????????????? | | #####????????????????????????????????????????????? | | ?????????????????????????????????????????????????? | | ?????????????????????????????????????????????????? | | ?????????????????????????????????????????????????? | | ?????????????????????????????????????????????????? | | ?????????????????????????????????????????????????? | | ?????????????????????????????????????????????????? | | ?????????????????????????????????????????????????? | +----------------------------------------------------+ Best States ------------- Heat Dissipation 28 Energy Generation 16 Energy Capacity 290 Matter Stores 300 Matter Capacity 300 Sight Range 16 Terrain Scan Density 10 Armor Coverage 300 Core Shielding 20 Evasion (%) 40 Recoil Reduction 2 Item Schematics ----------------- Lrg. Storage Unit | -10/Materials | Hacked Robot Schematics ------------------ None Fabricated ------------ Nothing Alien Tech Used ----------------- None Achievements -------------- None Challenges ------------ None Game ------ Seed CloakTacticalSuite Manual? 0 Play Time 00:58:19 Cumulative 834.9 hours Start 2020.09.20 @ 21:52:19 End 2020.09.20 @ 22:53:49 Sessions 1 Manual Loads 0 Difficulty Rogue Special Mode None Game No. 143 Rogue 143 Adventurer 0 Explorer 0 Win Type - Total 2 Types 2/0/0/0/0/0/0/0/0 Lore% 52 Gallery% 67 Achievement% 55 Wizard Run 0 Options --------- ASCII 0 Keyboard 1 Movement Numpad Keybinds 0 Fullscreen 1 Font 18/SmallcapsGlow Map View 76x50 Tactical HUD 1 Map Filters NONE Filters NONE Steam 1 RUN: 1a9eeab3-9c7c-480a-9769-b35011436e24